bitfinex-derivatives/quotes_SOLF0:USTF0_20250404
["timestamp","ask_amount","ask_price","bid_price","bid_amount"]
[1743781144493,47.61356434,118.31,118.21,304.0]
[1743781144694,0.05798906,118.26,118.2,228.65382281]
[1743781144894,47.61356434,118.25,118.2,228.65382281]
[1743781145093,47.61356434,118.23,118.2,228.65382281]
[1743781145392,47.61356434,118.25,118.2,228.65382281]
[1743781145688,0.06161021,118.23,118.2,228.65382281]
[1743781145993,0.06161021,118.23,118.12,43.66]
[1743781145994,47.61356434,118.21,118.12,43.66]
[1743781146493,47.61356434,118.17,118.09,228.65382281]
[1743781146698,0.06142133,118.18,118.09,228.65382281]
[1743781146991,47.61356434,118.16,118.09,228.65382281]
[1743781147193,0.06233583,118.15,118.09,228.65382281]
[1743781147394,47.61356434,118.14,118.09,228.65382281]
[1743781147588,47.61356434,118.12,118.09,228.65382281]
[1743781147991,56.07356434,118.12,118.09,228.65382281]
[1743781148192,47.61356434,118.1,118.09,228.65382281]
[1743781148594,43.67952282,118.12,118.09,228.65382281]
[1743781148793,0.05952282,118.12,117.9,276.26738715]
[1743781148990,0.05952282,118.12,118.06,47.61356434]
[1743781149187,91.23356434,118.16,118.06,47.61356434]
[1743781149391,0.05507125,118.1,118.0,304.34]
[1743781149594,0.05507125,118.1,118.08,47.61356434]
[1743781149795,351.73356434,118.19,118.09,43.66]
[1743781150092,47.61356434,118.19,118.09,43.66]
[1743781150295,43.66,118.2,118.1,47.61356434]
[1743781150494,47.61356434,118.19,118.09,43.66]
[1743781150993,0.05791364,118.15,118.13,0.05334608]
[1743781151993,47.61356434,118.23,118.14,43.68]
[1743781152399,43.68,118.24,118.14,91.29356434]
[1743781152601,43.68,118.24,118.14,43.68]
[1743781152797,47.61356434,118.25,118.14,91.29356434]
[1743781153001,47.61356434,118.27,118.16,47.61356434]
[1743781153297,0.05946864,118.21,118.18,0.059275]
[1743781153499,47.61356434,118.27,118.16,47.61356434]
[1743781153699,91.29356434,118.31,118.2,47.61356434]
[1743781154201,47.61356434,118.29,118.19,43.68]
[1743781154801,352.07356434,118.33,118.22,47.61356434]
[1743781154990,0.06127055,118.25,118.23,0.05978319]
[1743781155193,352.07356434,118.33,118.22,47.61356434]
[1743781155392,0.05952874,118.25,118.19,43.68]
[1743781155603,0.05952874,118.25,118.23,0.06304277]
[1743781155900,0.05713392,118.23,118.21,0.06474948]
[1743781156200,43.68,118.3,118.2,47.61356434]
[1743781156505,2.258e-05,118.23,118.22,47.61356434]
[1743781156703,47.61356434,118.33,118.22,47.61356434]
[1743781157189,91.29356434,118.35,118.24,47.61356434]
[1743781157397,47.61356434,118.33,118.25,43.68]
[1743781157595,348.2,118.4,118.26,47.61356434]
[1743781157897,0.05841792,118.3,118.28,47.6715519]
[1743781158096,47.61356434,118.36,118.29,43.68]
[1743781158302,0.05428816,118.3,118.28,0.05392699]
[1743781158695,47.61356434,118.32,118.21,43.68]
[1743781158896,0.06496643,118.3,118.28,0.06401049]
[1743781159304,0.06496643,118.3,118.26,43.68]
[1743781159499,0.06496643,118.3,118.28,0.05544903]
[1743781159699,47.61356434,118.34,118.28,0.05544903]
[1743781159901,0.06485589,118.3,118.28,0.05544903]
[1743781160105,0.06485589,118.3,118.27,43.68]
[1743781160401,0.06485589,118.3,118.28,0.06049223]
[1743781161601,47.67842023,118.3,118.24,43.66]
[1743781161795,0.06485589,118.3,118.24,43.66]
[1743781162396,0.06485589,118.3,118.24,91.27356434]
[1743781162596,0.06485589,118.3,118.24,43.66]
[1743781162796,47.67842023,118.3,118.26,0.05474919]
[1743781163005,47.61356434,118.28,118.26,4.919e-05]
[1743781163305,91.27356434,118.28,118.14,43.66]
[1743781163499,47.61356434,118.24,118.15,43.66]
[1743781163906,47.61356434,118.22,118.11,352.07356434]
[1743781164211,47.61356434,118.2,118.12,43.66]
[1743781164393,47.61356434,118.2,118.15,0.06203471]
[1743781164595,0.06438579,118.18,118.15,0.06203471]
[1743781166115,47.67795013,118.18,118.07,47.61356434]
[1743781166299,47.67795013,118.18,118.07,43.66]
[1743781166501,47.61356434,118.18,118.07,43.66]
[1743781166705,47.61356434,118.16,118.05,47.61356434]
[1743781166906,47.61356434,118.16,118.07,43.66]
[1743781167204,47.61356434,118.18,118.07,91.27356434]
[1743781167405,0.05772952,118.13,118.1,0.05983891]
[1743781167605,2.952e-05,118.13,118.11,47.61356434]
[1743781167807,47.61356434,118.22,118.12,43.68]
[1743781168004,47.61356434,118.24,118.13,47.61356434]
[1743781168611,47.61356434,118.26,118.15,47.61356434]
[1743781168812,0.06341537,118.2,118.17,0.05651798]
[1743781169010,0.06341537,118.2,118.18,43.68]
[1743781169206,47.61356434,118.24,118.18,43.68]
[1743781169509,0.05644419,118.2,118.14,43.68]
[1743781169902,0.05644419,118.2,118.16,0.06436385]
[1743781170098,47.61356434,118.22,118.12,43.68]
[1743781170402,0.05549075,118.19,118.17,0.05767425]
[1743781170602,0.05549075,118.19,118.09,47.61356434]
[1743781170812,47.61356434,118.2,118.1,43.68]
[1743781171012,47.61356434,118.22,118.1,43.68]
[1743781171307,43.68,118.23,118.12,47.61356434]
[1743781171507,47.61356434,118.24,118.14,47.61356434]
[1743781171711,47.61356434,118.24,118.15,43.68]
[1743781172010,0.05935631,118.2,118.18,0.0641801]
[1743781174712,0.05935631,118.2,118.11,43.68]
[1743781175010,47.61356434,118.23,118.12,47.61356434]
[1743781175212,47.61356434,118.26,118.14,47.61356434]
[1743781175906,0.06254766,118.21,118.16,47.61356434]
[1743781176108,0.06254766,118.21,118.17,43.68]
[1743781178012,0.06254766,118.21,118.13,43.68]
[1743781178209,47.61356434,118.22,118.13,43.68]
[1743781178513,0.0630424,118.18,118.09,47.61356434]
[1743781178704,47.61356434,118.2,118.1,43.68]
[1743781179016,0.05553898,118.15,118.08,272.33382281]
[1743781179615,0.05553898,118.15,118.08,43.68]
[1743781179821,0.05553898,118.15,118.09,47.61356434]
[1743781180713,0.05553898,118.15,118.08,43.68]
[1743781180913,0.05553898,118.15,118.05,47.61356434]
[1743781181209,47.61356434,118.14,118.05,43.68]
[1743781181408,0.05946779,118.11,118.03,47.61356434]
[1743781181610,0.05946779,118.11,118.04,43.68]
[1743781181814,0.05363969,118.08,118.04,43.68]
[1743781182013,47.61356434,118.12,118.04,43.68]
[1743781182215,0.05797756,118.09,118.04,43.68]
[1743781182711,0.05797756,118.09,118.01,228.65382281]
[1743781183011,47.61356434,118.08,117.99,272.33382281]
[1743781183218,47.67810893,118.06,117.99,228.65382281]
[1743781183611,47.61356434,118.04,117.99,228.65382281]
[1743781184014,0.06368762,118.03,117.99,228.65382281]
[1743781185318,0.06368762,118.03,117.94,91.29356434]
[1743781185523,47.61356434,118.06,117.96,47.61356434]
[1743781185726,47.61356434,118.08,117.96,47.61356434]
[1743781185915,2.295e-05,118.0,117.98,47.61356434]
[1743781186116,348.32,118.11,117.99,43.68]
[1743781186117,47.61356434,118.08,117.99,43.68]
[1743781186314,47.61356434,118.1,117.99,43.68]
[1743781186719,348.32,118.11,118.0,47.61356434]
[1743781186920,47.61356434,118.1,118.0,47.61356434]
[1743781187122,0.06105585,118.07,118.04,0.05509774]
[1743781189724,47.61356434,118.06,117.96,43.7]
[1743781190025,47.61356434,118.06,117.96,91.31356434]
[1743781190825,0.06281958,118.02,117.96,91.31356434]
[1743781191125,47.61356434,118.08,117.96,91.31356434]
[1743781191315,0.05583626,118.0,117.96,91.31356434]
[1743781191520,0.06198261,118.03,117.96,91.31356434]
[1743781191824,47.61356434,118.08,117.96,91.31356434]
[1743781192125,47.61356434,118.1,117.98,47.61356434]
[1743781192721,47.61356434,118.14,118.02,47.61356434]
[1743781193026,47.61356434,118.06,117.96,43.7]
[1743781193418,47.61356434,118.06,118.0,0.06369566]
[1743781193622,0.05584157,118.04,118.0,0.06369566]
[1743781193820,0.05584157,118.04,117.96,91.31356434]
[1743781194023,47.61356434,118.08,118.01,0.05750246]
[1743781194423,0.0615651,118.06,118.01,43.75750246]
[1743781194728,0.0615651,118.06,118.01,43.7]
[1743781194927,0.0615651,118.06,118.02,0.05886868]
[1743781195329,47.61356434,118.14,118.02,47.67243302]
[1743781195628,47.61356434,118.14,118.02,47.61356434]
[1743781195825,47.61356434,118.12,118.01,43.7]
[1743781196028,47.61356434,118.1,117.98,352.53356434]
[1743781196227,47.61356434,118.1,117.99,43.7]
[1743781196730,0.05765002,118.06,118.03,0.05477872]
[1743781196931,47.61356434,118.08,117.99,43.7]
[1743781197133,0.06398094,118.06,118.03,0.0558684]
[1743781199335,47.67754528,118.06,118.03,0.0558684]
[1743781199835,0.06398094,118.06,118.03,0.0558684]
[1743781200537,47.67754528,118.06,118.03,0.0558684]
[1743781200731,47.61356434,118.04,117.95,43.7]
[1743781201035,47.61356434,118.08,117.96,47.61356434]
[1743781201230,47.61356434,118.05,117.95,43.7]
[1743781201628,47.61356434,118.08,117.96,47.61356434]
[1743781201825,0.05375346,118.01,117.99,0.06330951]
[1743781202035,352.57356434,118.1,118.0,43.7]
[1743781202233,47.61356434,118.12,118.02,47.61356434]
[1743781203140,47.61356434,118.14,118.02,47.61356434]
[1743781203343,0.0636902,118.08,118.06,0.06036318]
[1743781203646,47.61356434,118.14,118.02,47.61356434]
[1743781203838,0.06431009,118.08,118.06,0.05534717]
[1743781204037,47.61356434,118.14,118.04,47.61356434]
[1743781204238,0.05878066,118.08,118.06,0.05415486]
[1743781204443,47.61356434,118.18,118.06,47.61356434]
[1743781204647,47.61356434,118.14,118.05,43.7]
[1743781204847,91.31356434,118.2,118.05,43.7]
[1743781204848,47.61356434,118.16,118.05,43.7]
[1743781205038,47.61356434,118.16,118.06,47.61356434]
[1743781205535,0.06275245,118.12,118.1,0.0595994]
[1743781205741,47.61356434,118.2,118.1,43.7]
[1743781205936,91.31356434,118.22,118.1,91.31356434]
[1743781206139,91.31356434,118.22,118.12,47.61356434]
[1743781206338,47.61356434,118.24,118.12,47.61356434]
[1743781206538,47.61356434,118.26,118.16,47.61356434]
[1743781206744,47.61356434,118.31,118.2,47.61356434]
[1743781206940,0.06068297,118.22,118.2,47.67316087]
[1743781207236,47.61356434,118.31,118.18,47.61356434]
[1743781207444,304.98,118.32,118.22,47.61356434]
[1743781207647,304.98,118.32,118.23,43.7]
[1743781207841,47.61356434,118.29,118.23,43.7]
[1743781208243,47.61356434,118.27,118.25,0.05516829]
[1743781208543,47.61356434,118.27,118.17,43.7]
[1743781208743,47.61356434,118.25,118.14,47.61356434]
[1743781208942,47.61356434,118.25,118.15,43.68]
[1743781209544,0.05838969,118.21,118.19,0.06041552]
[1743781212149,47.61356434,118.31,118.2,91.27356434]
[1743781213250,47.667356,118.27,118.24,0.05368958]
[1743781213551,0.05379166,118.27,118.24,0.05368958]
[1743781214247,47.667356,118.27,118.24,0.05368958]
[1743781214448,47.667356,118.27,118.24,8.958e-05]
[1743781214948,0.05379166,118.27,118.24,8.958e-05]
[1743781215150,47.667356,118.27,118.24,8.958e-05]
[1743781215348,47.61356434,118.26,118.11,47.61356434]
[1743781215548,47.61356434,118.21,118.1,228.65382281]
[1743781215751,47.61356434,118.19,118.1,228.65382281]
[1743781216049,47.61356434,118.21,118.09,91.25356434]
[1743781216555,0.0577622,118.16,118.14,0.0591029]
[1743781216856,47.61356434,118.19,118.14,0.0591029]
[1743781217051,47.61356434,118.21,118.14,0.0591029]
[1743781217247,0.06122341,118.16,118.09,91.25356434]
[1743781217451,47.61356434,118.19,118.16,0.05456907]
[1743781217651,47.61356434,118.17,118.05,47.61356434]
[1743781217847,47.61356434,118.13,118.01,47.61356434]
[1743781218154,47.61356434,118.11,118.02,43.64]
[1743781218453,47.61356434,118.13,118.01,47.61356434]
[1743781218654,47.61356434,118.09,118.05,0.05433354]
[1743781218846,47.61356434,118.07,118.0,228.65382281]
[1743781219050,47.61356434,118.05,118.0,228.65382281]
[1743781219255,43.64,118.07,118.0,228.65382281]
[1743781219256,47.61356434,118.03,118.0,215.75722281]
[1743781219557,47.61356434,118.01,117.91,326.78474466]
[1743781219757,47.61356434,118.01,117.92,43.64]
[1743781219962,47.61356434,117.99,117.91,370.42474466]
[1743781220155,0.0546856,117.97,117.95,0.06071591]
[1743781225553,47.61356434,117.96,117.95,1.591e-05]
[1743781226558,0.0546856,117.97,117.95,1.591e-05]
[1743781232965,47.61356434,118.04,117.95,43.68001591]
[1743781233168,47.61356434,118.06,117.95,43.68]
[1743781233559,47.61356434,118.06,117.95,91.29356434]
[1743781234165,0.06150275,118.02,117.99,0.0601695]
[1743781234572,47.67506709,118.02,117.99,0.0601695]
[1743781235778,0.06150275,118.02,117.99,0.0601695]
[1743781236069,47.67506709,118.02,117.99,6.95e-05]
[1743781237268,47.61356434,118.0,117.99,6.95e-05]
[1743781237776,56.09356434,118.0,117.9,43.68]
[1743781238072,47.61356434,117.98,117.9,43.68]
[1743781238273,47.61356434,117.96,117.85,47.61356434]
[1743781238574,47.61356434,117.96,117.87,43.68]
[1743781238772,0.06026529,117.92,117.89,0.06200583]
[1743781239764,47.67382963,117.92,117.89,0.06200583]
[1743781240180,47.67382963,117.92,117.89,5.83e-06]
[1743781240372,47.61356434,117.9,117.89,5.83e-06]
[1743781240571,47.61356434,117.9,117.8,43.68]
[1743781240772,47.61356434,117.85,117.78,0.98090951]
[1743781241278,47.61356434,117.87,117.78,0.98090951]
[1743781241673,47.61356434,117.85,117.83,0.03075602]
[1743781242279,0.05948483,117.86,117.83,0.03075602]
[1743781242478,47.61356434,117.85,117.83,0.03075602]
[1743781243179,47.61356434,117.85,117.83,5.602e-05]
[1743781243373,47.61356434,117.85,117.78,0.98090951]
[1743781243374,56.09356434,117.85,117.78,0.98090951]
[1743781243577,91.29356434,117.84,117.78,0.98090951]
[1743781243881,47.61356434,117.8,117.78,9.51e-06]
[1743781244080,47.61356434,117.79,117.74,1.10602285]
[1743781244582,0.05863142,117.78,117.74,1.10602285]
[1743781244775,0.05863142,117.78,117.74,44.80602285]
[1743781245181,0.05863142,117.78,117.75,47.61356434]
[1743781245583,0.05863142,117.78,117.74,44.80602285]
[1743781245780,0.05863142,117.78,117.74,92.41958719]
[1743781246288,0.05863142,117.78,117.74,44.80602285]
[1743781246585,0.05863142,117.78,117.74,92.41958719]
[1743781247086,0.05863142,117.78,117.74,100.91958719]
[1743781247281,3.142e-05,117.78,117.76,47.61356434]
[1743781247489,3.142e-05,117.78,117.76,56.11356434]
[1743781248084,396.67356434,117.89,117.76,56.11356434]
[1743781248288,349.06,117.89,117.79,47.61356434]
[1743781248588,305.36,117.89,117.8,43.7]
[1743781248894,47.61356434,117.91,117.81,47.61356434]
[1743781249404,0.05555586,117.87,117.85,0.05863142]
[1743781249582,0.05555586,117.87,117.85,43.75863142]
[1743781249786,396.75356434,117.96,117.85,99.79356434]
[1743781250087,47.61356434,117.94,117.85,43.7]
[1743781250288,0.06452802,117.92,117.89,0.05526344]
[1743781252902,2.802e-05,117.92,117.91,47.61356434]
[1743781253095,2.802e-05,117.92,117.91,43.7]
[1743781254399,2.802e-05,117.92,117.91,52.18]
[1743781254794,2.802e-05,117.92,117.91,43.7]
[1743781254996,2.802e-05,117.92,117.91,52.18]
[1743781255303,2.802e-05,117.92,117.91,99.79356434]
[1743781256399,2.802e-05,117.92,117.91,52.18]
[1743781258001,2.802e-05,117.92,117.91,99.79356434]
[1743781258204,43.68,118.07,117.91,99.79356434]
[1743781258504,47.61356434,118.06,117.95,47.61356434]
[1743781258706,47.61356434,118.06,117.96,43.68]
[1743781258904,47.61356434,118.04,117.96,43.68]
[1743781259204,47.61356434,118.06,117.96,43.68]
[1743781259405,0.06150567,118.01,117.99,0.06275397]
[1743781259606,353.05356434,118.08,117.99,0.06275397]
[1743781259906,0.06133123,118.01,117.99,47.61356434]
[1743781260106,47.61356434,118.1,118.02,0.05815805]
[1743781260303,47.61356434,118.06,118.01,43.68]
[1743781260902,0.0631532,118.07,118.01,43.68]
[1743781261806,47.61356434,118.06,118.03,0.05881718]
[1743781262002,47.61356434,118.04,117.94,43.68]
[1743781262602,47.61356434,118.04,117.92,47.61356434]
[1743781262803,47.61356434,118.04,117.93,43.68]
[1743781263008,47.61356434,118.04,117.94,47.61356434]
[1743781263204,0.05603898,118.0,117.94,47.61356434]
[1743781263905,0.05603898,118.0,117.96,47.61356434]
[1743781264105,0.05603898,118.0,117.97,43.66]
[1743781264308,3.898e-05,118.0,117.97,43.66]
[1743781264507,3.898e-05,118.0,117.87,591.15727851]
[1743781264710,47.61356434,118.01,117.88,47.84]
[1743781264901,47.8,118.05,117.9,47.61356434]
[1743781265098,47.8,118.05,117.9,95.47356434]
[1743781265304,47.61356434,118.04,117.92,47.61356434]
[1743781265508,0.06342309,117.99,117.96,0.056]
[1743781265809,47.61356434,118.03,117.92,95.43356434]
[1743781266006,47.8,118.05,117.92,95.43356434]
[1743781266007,0.05741716,117.99,117.96,0.056]
[1743781266210,47.6709815,117.99,117.96,0.056]
[1743781266408,47.6709815,117.99,117.89,47.82]
[1743781266608,47.61356434,117.99,117.89,47.82]
[1743781266804,47.61356434,117.97,117.87,354.65034893]
[1743781267108,47.61356434,117.93,117.86,516.57266036]
[1743781267408,47.61356434,117.93,117.85,230.75538185]
[1743781267609,0.0629517,117.91,117.85,230.75538185]
[1743781268705,0.0629517,117.91,117.85,278.36894619]
[1743781268899,305.2,117.99,117.89,47.61356434]
[1743781269108,305.2,117.99,117.9,47.76]
[1743781269307,47.61356434,117.97,117.9,47.76]
[1743781270414,0.06008733,117.95,117.92,0.05587627]
[1743781270610,47.61356434,118.01,117.9,47.76]
[1743781270811,0.06129001,117.95,117.92,0.05735576]
[1743781271013,47.61356434,118.01,117.9,47.76]
[1743781271217,0.06279152,117.95,117.92,0.05877356]
[1743781271419,47.61356434,118.01,117.9,47.76]
[1743781271711,7.52e-06,117.95,117.92,0.0562288]
[1743781271910,47.61356434,118.07,117.93,47.61356434]
[1743781272110,47.61356434,118.05,117.94,47.61356434]
[1743781272310,47.61356434,118.03,117.91,47.61356434]
[1743781272512,47.61356434,118.03,117.9,47.76]
[1743781272719,47.61356434,118.07,117.94,47.61356434]
[1743781273015,47.61356434,118.05,117.95,47.68]
[1743781273213,0.05784832,118.02,117.99,0.0616509]
[1743781274714,47.67141266,118.02,117.89,305.26]
[1743781275016,47.61356434,118.04,117.92,47.61356434]
[1743781275723,47.58,118.06,117.96,47.61356434]
[1743781275918,7.731e-05,117.99,117.97,95.16757776]
[1743781276111,47.61356434,118.07,117.97,95.11356434]
[1743781276411,47.61356434,118.07,117.97,47.5]
[1743781276613,47.61356434,118.07,117.97,95.11356434]
[1743781277116,0.06447421,118.03,118.01,0.06004395]
[1743781278513,47.61356434,118.02,118.01,4.395e-05]
[1743781280724,0.06447421,118.03,118.01,4.395e-05]
[1743781280920,47.61356434,118.02,118.01,4.395e-05]
[1743781281320,0.06447421,118.03,118.01,4.395e-05]
[1743781285126,47.61356434,118.02,117.91,47.18]
[1743781285417,47.61356434,117.98,117.92,230.75538185]
[1743781285820,47.61356434,117.96,117.92,230.75538185]
[1743781286218,47.61356434,117.94,117.93,0.05472855]
[1743781286921,47.13644206,117.95,117.93,0.05472855]
[1743781288622,47.13644206,117.95,117.84,47.08]
[1743781288821,0.05644206,117.95,117.89,47.61356434]
[1743781289118,96.75356434,118.01,117.9,49.16]
[1743781289626,47.61356434,118.03,117.93,47.61356434]
[1743781289826,305.14,118.05,117.95,47.61356434]
[1743781289827,47.61356434,118.05,117.95,47.61356434]
[1743781290025,96.71356434,118.07,117.96,49.1]
[1743781290525,47.61356434,118.03,117.96,49.1]
[1743781291026,0.05585501,118.01,117.98,0.0635836]
[1743781291227,47.66941935,118.01,117.98,0.0635836]
[1743781291424,47.61356434,118.04,117.98,0.0635836]
[1743781291624,0.05813274,118.01,117.98,0.0635836]
[1743781291824,0.05813274,118.01,117.92,49.1]
[1743781292027,0.05813274,118.01,117.98,0.05398358]
[1743781292224,47.61356434,118.04,117.92,49.1]
[1743781292519,0.05696357,118.01,117.98,0.05382994]
[1743781292927,47.61356434,118.0,117.98,2.994e-05]
[1743781293823,0.05696357,118.01,117.98,2.994e-05]
[1743781294029,47.61356434,118.0,117.98,2.994e-05]
[1743781294227,0.05696357,118.01,117.98,2.994e-05]
[1743781295031,47.61356434,118.0,117.98,2.994e-05]
[1743781295725,0.05696357,118.01,117.98,2.994e-05]
[1743781298230,47.61356434,118.0,117.87,230.75538185]
[1743781298434,47.61356434,117.94,117.87,230.75538185]
[1743781298730,47.61356434,117.92,117.87,230.75538185]
[1743781299133,47.61356434,117.94,117.87,230.75538185]
[1743781299431,0.06347896,117.92,117.87,230.75538185]
[1743781299831,47.6770433,117.92,117.87,230.75538185]
[1743781300330,47.6770433,117.92,117.83,46.7]
[1743781300628,47.61356434,117.92,117.81,47.61356434]
[1743781300827,0.05767351,117.89,117.82,46.62]
[1743781302328,0.05767351,117.89,117.79,305.2]
[1743781302535,47.61356434,117.88,117.79,46.44]
[1743781302733,0.05841184,117.85,117.79,46.44]
[1743781302935,0.05841184,117.85,117.79,94.05356434]
[1743781303336,0.05841184,117.85,117.79,46.44]
[1743781303539,0.05841184,117.85,117.79,94.05356434]
[1743781303836,0.05841184,117.85,117.81,47.61356434]
[1743781304832,0.05841184,117.85,117.79,94.05356434]
[1743781305039,0.05841184,117.85,117.8,46.38]
[1743781305332,1.184e-05,117.85,117.83,47.61356434]
[1743781305540,1.184e-05,117.85,117.84,47.61356434]
[1743781305726,1.184e-05,117.85,117.82,47.61356434]
[1743781306132,1.184e-05,117.85,117.82,56.09356434]
[1743781306431,1.184e-05,117.85,117.81,305.40310337]
[1743781306627,1.184e-05,117.85,117.81,0.06310337]
[1743781306935,1.184e-05,117.85,117.81,46.44310337]
[1743781307337,1.184e-05,117.85,117.81,0.06310337]
[1743781307832,47.61357618,117.85,117.81,0.06310337]
[1743781308540,1.184e-05,117.85,117.81,0.06310337]
[1743781309242,1.184e-05,117.85,117.81,47.67666771]
[1743781309540,1.184e-05,117.85,117.83,47.61356434]
[1743781309739,1.184e-05,117.85,117.84,47.61356434]
[1743781309941,47.61356434,117.97,117.84,47.61356434]
[1743781310134,47.61356434,117.95,117.84,47.61356434]
[1743781311038,0.05645843,117.91,117.88,47.67476389]
[1743781311238,352.97356434,117.99,117.89,46.32]
[1743781312343,0.05447469,117.95,117.93,0.05985512]
[1743781312634,0.05447469,117.95,117.93,46.25985512]
[1743781313133,47.61356434,118.01,117.93,46.25985512]
[1743781313338,47.61356434,118.01,117.93,46.2]
[1743781313740,47.61356434,118.03,117.93,46.2]
[1743781314442,0.06226994,117.99,117.97,0.06499969]
[1743781314736,0.06226994,117.99,117.97,46.06499969]
[1743781314937,47.61356434,118.05,117.97,46.06499969]
[1743781315130,47.61356434,118.05,117.97,46.0]
[1743781315336,47.61356434,118.07,117.97,46.0]
[1743781316151,0.05876752,118.03,118.01,0.05624486]
[1743781318131,47.67233186,118.03,117.92,47.61356434]
[1743781318339,47.61356434,118.01,117.93,45.74]
[1743781318739,47.61356434,118.05,117.93,45.74]
[1743781318939,47.61356434,118.07,117.94,47.61356434]
[1743781319340,0.06453665,118.02,117.99,0.06205662]
[1743781319638,0.06453665,118.02,117.93,45.74]
[1743781319842,47.61356434,118.01,117.99,0.06242757]
[1743781320145,0.06396491,118.01,117.93,45.74]
[1743781320444,47.61356434,118.03,117.93,45.74]
[1743781320639,0.05540374,117.98,117.93,45.74]
[1743781320839,0.05540374,117.98,117.96,0.05824928]
[1743781321140,0.05540374,117.98,117.97,45.7]
[1743781321345,47.61356434,118.07,117.97,45.7]
[1743781322042,47.61356434,118.09,117.97,45.7]
[1743781322241,47.61356434,118.07,117.97,45.7]
[1743781322441,0.06418397,118.04,118.02,0.06342475]
[1743781322747,47.61356434,118.09,117.98,47.61356434]
[1743781322946,2.599e-05,118.04,118.02,47.67573246]
[1743781323150,47.61356434,118.14,118.03,45.68]
[1743781323350,47.61356434,118.14,118.04,47.61356434]
[1743781323657,47.61356434,118.16,118.04,47.61356434]
[1743781323951,47.61356434,118.17,118.06,47.61356434]
[1743781324251,0.0566328,118.11,118.08,0.05989346]
[1743781324646,47.61356434,118.17,118.07,45.62]
[1743781324940,47.61356434,118.2,118.1,47.61356434]
[1743781325144,47.61356434,118.2,118.11,45.56]
[1743781326050,0.05955481,118.17,118.14,0.06199456]
[1743781326251,0.05955481,118.17,118.15,45.52]
[1743781326449,352.81356434,118.24,118.15,45.52]
[1743781326650,0.06243602,118.17,118.15,45.57864774]
[1743781326948,352.81356434,118.24,118.15,45.58248828]
[1743781327150,0.05698942,118.17,118.15,45.58248828]
[1743781327345,352.81356434,118.24,118.15,45.52]
[1743781327554,305.08,118.31,118.2,47.61356434]
[1743781327851,47.61356434,118.34,118.22,47.61356434]
[1743781328052,0.05658967,118.27,118.21,45.6]
[1743781328253,0.05658967,118.27,118.24,47.67328365]
[1743781328453,47.61356434,118.36,118.25,45.62]
[1743781328641,0.05486654,118.27,118.26,47.61356434]
[1743781328847,125.75993727,118.37,118.26,47.61356434]
[1743781329349,47.61356434,118.4,118.28,47.61356434]
[1743781329547,47.61356434,118.38,118.29,45.68]
[1743781329956,47.61356434,118.4,118.29,45.68]
[1743781330150,0.05456469,118.35,118.32,0.06452943]
[1743781330955,0.05456469,118.35,118.32,47.67809377]
[1743781331151,6.469e-05,118.35,118.34,47.61356434]
[1743781331548,6.469e-05,118.35,118.33,45.62]
[1743781334552,6.469e-05,118.35,118.33,93.23356434]
[1743781334754,6.469e-05,118.35,118.32,0.06452943]
[1743781335756,6.469e-05,118.35,118.32,47.67809377]
[1743781336257,6.469e-05,118.35,118.32,0.06452943]
[1743781336448,6.469e-05,118.35,118.32,47.67809377]
[1743781336950,6.469e-05,118.35,118.32,0.06452943]
[1743781337554,6.469e-05,118.35,118.32,47.67809377]
[1743781338244,47.61356434,118.46,118.34,47.61356434]
[1743781338553,47.61356434,118.48,118.36,47.61356434]
[1743781338743,47.61356434,118.48,118.38,47.61356434]
[1743781338950,93.31356434,118.54,118.39,350.14]
[1743781339144,47.61356434,118.55,118.43,47.61356434]
[1743781339346,47.61356434,118.53,118.44,45.7]
[1743781339550,0.05503362,118.5,118.48,0.06131988]
[1743781339756,47.61356434,118.56,118.49,45.7]
[1743781340054,0.06157849,118.5,118.49,45.7]
[1743781340255,47.61356434,118.54,118.51,0.05523517]
[1743781340459,47.61356434,118.54,118.46,45.9]
[1743781340661,0.06082747,118.54,118.51,0.06011445]
[1743781340846,47.61356434,118.58,118.51,0.06011445]
[1743781341157,0.06030462,118.54,118.51,0.06011445]
[1743781341458,0.06030462,118.54,118.51,45.96011445]
[1743781341652,0.06030462,118.54,118.51,93.57367879]
[1743781341857,0.06030462,118.54,118.53,47.61356434]
[1743781342251,4.62e-06,118.54,118.53,56.05356434]
[1743781342455,4.62e-06,118.54,118.53,47.61356434]
[1743781342957,4.62e-06,118.54,118.51,93.57367879]
[1743781343157,4.62e-06,118.54,118.51,47.67367879]
[1743781343358,4.62e-06,118.54,118.52,45.86]
[1743781344759,4.62e-06,118.54,118.53,47.61356434]
[1743781344957,4.62e-06,118.54,118.52,54.3]
[1743781345155,304.08,118.71,118.53,95.22712868]
[1743781345354,93.49356434,118.74,118.52,54.3]
[1743781345355,47.61356434,118.67,118.57,47.61356434]